Cogmind - Beta 11.1 @@@ ROGUE MODE // 2022.06.21 @ 23:08:47 Player: Malakyel Result: Destroyed by G-34 Mercenary with Small Laser Performance ------------- Evolutions (1) 500 Regions Visited (3) 600 Robots Destroyed (16) 80 Value Destroyed (424) 424 Prototype IDs (0) 0 Alien Tech Used (0) 0 Bonus (0) 0 TOTAL SCORE: 1604 Bonus ------- None Cogmind --------- Core Integrity 0/400 Matter 207/300 Energy 80/100 System Corruption 0% Temperature Cool (6) Movement Core (150) Ox2 Location -9/Mines Parts ------- > --- POWER (1) -------- (None) > --- PROPULSION (4) --- (None) > --- UTILITY (2) ------ Heat Sink Small Storage Unit > --- WEAPON (2) ------- Small Laser > --- INVENTORY (8) ---- Improved Ion Engine Improved Ion Engine Aluminum Leg Mining Laser Peak State ------------ > --- POWER ------------ Improved Ion Engine > --- PROPULSION ------- Aluminum Leg Aluminum Leg > --- UTILITY ---------- Small Storage Unit Improved Terrain Scanner > --- WEAPON ----------- Assault Rifle Heavy Assault Rifle > --- INVENTORY -------- Light Ion Engine Improved Ion Engine Light Treads Light Treads Heat Sink Medium Laser Small Laser [Rating: 11] Favorites ----------- Power Ion Engine Engine Ion Engine Propulsion Aluminum Leg Treads Light Treads Leg Aluminum Leg Utility Small Storage Unit Device Heat Sink Storage Small Storage Unit Protection Light Armor Plating Weapon Assault Rifle Energy Gun Small Laser Ballistic Gun Assault Rifle Build | -11 -10 -9 -9 ------- Run | Scr Mat Mat Min Slots Evolved 2 | . . 2 . Power . | . . . . Propulsion 2 | . . 2 . Utility . | . . . . Weapon . | . . . . Parts Attached 22 | 5 4 11 2 Power 4 | . 1 3 . Engine 4 | . 1 3 . Core . | . . . . Reactor . | . . . . Propulsion 5 | 2 1 2 . Treads 2 | . . 2 . Leg 3 | 2 1 . . Wheel . | . . . . Hover . | . . . . Flight . | . . . . Utility 7 | 1 2 3 1 Device 4 | . 2 1 1 Storage 1 | 1 . . . Processor . | . . . . Hackware . | . . . . Protection 2 | . . 2 . Artifact . | . . . . Weapon 6 | 2 . 3 1 Energy Gun 3 | . . 2 1 Energy Cannon . | . . . . Ballistic Gun 3 | 2 . 1 . Ballistic Cannon . | . . . . Launcher . | . . . . Special Weapon . | . . . . Impact Weapon . | . . . . Slashing Weapon . | . . . . Piercing Weapon . | . . . . Special Melee Weapon . | . . . . Unidentified Prototypes . | . . . . Parts Lost 11 | . . 8 3 Power 1 | . . 1 . Propulsion 4 | . . 3 1 Utility 2 | . . 2 . Weapon 4 | . . 2 2 Highest Loss Streak 8 | . . 8 3 To Critical Strikes . | . . . . Average Slot Usage (%) 74 | . 90 72 45 Engine 8 | . 9 10 . Treads 3 | . . 4 9 Leg 18 | . 28 16 . Device 6 | . 9 4 6 Storage 12 | . 14 11 11 Protection 1 | . . 3 . Energy Gun 3 | . . 1 19 Ballistic Gun 19 | . 28 20 . Naked Turns . | . . . . Heaviest Build 20 | 9 15 20 9 Greatest Support 40 | 20 20 40 20 Greatest Overweight (x) 1 | . . 1 1 Average Overweight (x) . | . . . . Largest Inventory Capacity 8 | 8 8 8 8 Average Capacity 7 | 6 8 8 8 Most Carried 8 | 8 8 8 5 Average Carried 6 | 5 7 7 4 Final Capacity 8 | 8 8 8 8 Final Carried 8 | 7 8 4 4 Class Distribution -------------------- 83% | Mutant 16% | Scavenger-Mutant Dominant Class ---------------- Mutant | -10/Materials Mutant | -9/Materials Mutant | -9/Mines Resources | -11 -10 -9 -9 ----------- Run | Scr Mat Mat Min Matter Collected 593 | 240 206 114 33 Remotely . | . . . . Salvage Created 532 | . 180 319 33 Parts 35 | . 8 25 2 Haulers Intercepted . | . . . . Recyclers Shooed . | . . . . Parts Field Recycled . | . . . . Retrieved Matter . | . . . . Parts Self-Destructed . | . . . . Prevented . | . . . . Kills | -11 -10 -9 -9 ------- Run | Scr Mat Mat Min Combat Hostiles Destroyed 12 | . 6 5 1 Guns 12 | . 6 5 1 Classes Destroyed 6 | . 3 3 . Tunneler 1 | . . 1 . Operator 1 | . 1 . . Watcher 2 | . . 2 . Swarmer 3 | . 3 . . Grunt 6 | . 3 2 1 Sentry 3 | . . 3 . Best Kill Streak 3 | . 3 3 1 Combat Bots Only 3 | . 3 1 1 Max Kills in Single Turn 2 | . 1 2 1 Gunslinging . | . . . . Exploded . | . . . . Melee . | . . . . Uniques/NPCs Destroyed . | . . . . Combat | -11 -10 -9 -9 -------- Run | Scr Mat Mat Min Damage Taken 1801 | . 265 1197 339 Core 472 | . 72 237 163 Absorbed by Shields . | . . . . Core Remaining (%) 85 | 100 71 . . Volleys Fired 65 | . 26 30 9 Largest 2 | . 2 2 2 Hottest 90 | . 40 90 90 Shots Fired 126 | . 52 59 15 Gun 126 | . 52 59 15 Cannon . | . . . . Launcher . | . . . . Special . | . . . . Kinetic 107 | . 52 55 . Thermal 19 | . . 4 15 Explosive . | . . . . Electromagnetic . | . . . . Robot Hit Streak 11 | . 9 11 4 Robot Miss Streak 5 | . 4 5 1 Penetration Max . | . . . . Secondary Targets 2 | . 1 1 . Max Gunslinging Chain 1 | . 1 1 . Shots Hit Robots 79 | . 36 35 8 Core Hits 30 | . 11 16 3 Critical Kills . | . . . . Critical Parts Destroyed . | . . . . Critical Strikes 1 | . . . 1 Burn 1 | . . . 1 Melee Attacks . | . . . . Impact . | . . . . Slashing . | . . . . Piercing . | . . . . Sneak Attacks . | . . . . Combat Hostiles . | . . . . Follow-up Attacks . | . . . . Damage Inflicted 1051 | . 449 512 90 Guns 1051 | . 449 512 90 Cannons . | . . . . Explosions . | . . . . Melee . | . . . . Ramming . | . . . . Kinetic 925 | . 449 476 . Thermal 126 | . . 36 90 Explosive . | . . . . Electromagnetic . | . . . . Impact . | . . . . Slashing . | . . . . Piercing . | . . . . Highest Corruption . | . . . . Average Corruption . | . . . . Corruption Purged . | . . . . Corruption Blocked . | . . . . Overload Shots . | . . . . Overflow Damage . | . . . . Projectiles . | . . . . Explosions . | . . . . Melee . | . . . . Knockbacks . | . . . . Impact . | . . . . Kinetic . | . . . . Secondary . | . . . . Self-Inflicted Damage . | . . . . Shots . | . . . . Rammed . | . . . . Targets Rammed . | . . . . Kicked . | . . . . Crushed . | . . . . Highest Temperature 99 | . . 99 . Average Temperature 33 | . . 33 . Received Heat Transfer 861 | . 90 597 174 Siege Activations . | . . . . Robots Corrupted . | . . . . Combat Hostiles . | . . . . Parts Fried . | . . . . Impact Corruptions . | . . . . Robots Melted . | . . . . Combat Hostiles . | . . . . Parts Melted 2 | . . . 2 Heat Transferred 397 | . . 99 298 Parts Sabotaged . | . . . . Parts Stolen . | . . . . Parts Stripped . | . . . . Power Chain Reactions . | . . . . Missiles Intercepted . | . . . . Alert | -11 -10 -9 -9 ------- Run | Scr Mat Mat Min Peak Influence 293 | . 188 293 118 Initial 98 | . . 79 98 Average 140 | . 100 203 103 Maximum Alert Level 1 | . . 1 . Low Security (%) 69 | 100 100 35 100 Level 1 30 | . . 64 . Level 2 . | . . . . Level 3 . | . . . . Level 4 . | . . . . Level 5 . | . . . . High Security . | . . . . Max Security . | . . . . Squads Dispatched 3 | . 2 1 . Investigation 1 | . 1 . . Extermination . | . . . . Reinforcement 2 | . 1 1 . Assault . | . . . . Garrison . | . . . . Intercept . | . . . . Searches Triggered . | . . . . Construction Impeded . | . . . . Haulers Reinforced . | . . . . Active Scanning Responses . | . . . . Cargo Convoy Interrupts . | . . . . Stealth | -11 -10 -9 -9 --------- Run | Scr Mat Mat Min Distress Signals 4 | . . 4 . Communications Jammed . | . . . . Distress Signals . | . . . . Times Spotted 31 | . 7 16 8 Peak Tracking Total 7 | . 3 7 6 Tactical Retreats . | . . . . Traps | -11 -10 -9 -9 ------- Run | Scr Mat Mat Min Traps Triggered . | . . . . Indirectly . | . . . . Trap Hack Attempts . | . . . . Triggered . | . . . . Disarmed . | . . . . Reprogrammed . | . . . . Reused . | . . . . Traps Extracted . | . . . . Installed . | . . . . Triggered . | . . . . Machines | -11 -10 -9 -9 ---------- Run | Scr Mat Mat Min Machines Disabled . | . . . . Max in Single Turn . | . . . . Machines Sabotaged . | . . . . Garrisons Compromised . | . . . . Overloaded Fab Kills . | . . . . Hacking | -11 -10 -9 -9 --------- Run | Scr Mat Mat Min Machines Accessed 5 | . 2 3 . Terminals 5 | . 2 3 . Fabricators . | . . . . Repair Stations . | . . . . Recycling Units . | . . . . Scanalyzers . | . . . . Garrison Access . | . . . . Total Hacks 14 | . 6 8 . Successful 8 | . 3 5 . Failed 6 | . 3 3 . Catastrophic 2 | . 2 . . Database Lockouts . | . . . . Manual . | . . . . Terminals 14 | . 6 8 . Fabricators . | . . . . Repair Stations . | . . . . Recycling Units . | . . . . Scanalyzers . | . . . . Garrison Access . | . . . . Terminal Hacks 8 | . 3 5 . Robot Analysis 1 | . . 1 . Locate Traps 2 | . 1 1 . Dispatch Records 2 | . 1 1 . Surveillance Status 1 | . . 1 . Recall Investigation 1 | . 1 . . Recall Reinforcements 1 | . . 1 . Fabricator Hacks . | . . . . Repair Station Hacks . | . . . . Recycling Unit Hacks . | . . . . Scanalyzer . | . . . . Garrison Access Hacks . | . . . . Unauthorized Hacks . | . . . . Terminals . | . . . . Fabricators . | . . . . Repair Stations . | . . . . Recycling Units . | . . . . Scanalyzers . | . . . . Garrison Access . | . . . . Data Cores Recovered . | . . . . Used . | . . . . Hacking Detections 4 | . 2 2 . Full Trace Events 2 | . 2 . . Feedback Events . | . . . . Feedback Blocked . | . . . . Robot Schematics Acquired . | . . . . Robots Built . | . . . . Authchips . | . . . . Time . | . . . . Total Robot Build Rating . | . . . . Part Schematics Acquired . | . . . . Parts Built . | . . . . Authchips . | . . . . Time . | . . . . Total Part Build Rating . | . . . . Parts Repaired . | . . . . Time . | . . . . Parts Recycled . | . . . . Recycled Matter . | . . . . Retrieved Matter . | . . . . Retrieved Components . | . . . . Parts Scanalyzed . | . . . . Part Schematics Acquired . | . . . . Parts Damaged . | . . . . Bothacking | -11 -10 -9 -9 ------------ Run | Scr Mat Mat Min Used RIF Installer . | . . . . Robots Hacked . | . . . . Non-combat . | . . . . Combat . | . . . . Robot Hacks Applied . | . . . . Relay Couplers Released . | . . . . Fabnet Peak Effective % . | . . . . Robots Rewired . | . . . . Allies Hacked . | . . . . Hacks Repelled . | . . . . Allies | -11 -10 -9 -9 -------- Run | Scr Mat Mat Min Total Allies . | . . . . Largest Group . | . . . . Highest-Rated Group . | . . . . Highest-Rated Ally . | . . . . Total Orders . | . . . . Ally Attacks . | . . . . Total Damage . | . . . . Kills . | . . . . Allies Corrupted . | . . . . Allies Melted . | . . . . Intel | -11 -10 -9 -9 ------- Run | Scr Mat Mat Min Robot Analysis Total 1 | . . 1 . Derelict Logs Recovered . | . . . . Drone Launches . | . . . . Drone Recoveries . | . . . . Exploration | -11 -10 -9 -9 ------------- Run | Scr Mat Mat Min Turns Passed 844 | 72 266 394 112 Spaces Moved 462 | 53 145 208 56 Core 20 | 11 . . 9 Treads 89 | . . 42 47 Legs 353 | 42 145 166 . Wheels . | . . . . Hover . | . . . . Flight . | . . . . Fastest Speed 50 | 50 120 120 100 Average Speed 127 | 105 120 132 150 Slowest Speed 190 | 120 120 190 160 Overloaded Moves . | . . . . Propulsion Burnouts . | . . . . Robots Hopped . | . . . . Cave-ins Triggered . | . . . . Exploration Rate (%) 18 | 5 22 31 16 Regions Visited 3 Branch Regions 1 Pre-discovered Areas . | . . . . Known Exits Taken . | . . . . Unknown Exits Taken 3 | 1 1 1 . Scrap Searched . | . . . . Spaces Dug . | . . . . Terrain Destroyed . | . . . . Melee . | . . . . Projectile . | . . . . AOE . | . . . . Terrain Rammed . | . . . . Walls Destroyed . | . . . . Machines Disabled . | . . . . Actions | -11 -10 -9 -9 --------- Run | Scr Mat Mat Min Total 592 | 68 185 270 69 Wait 16 | . 4 12 . Move 459 | 52 144 207 56 Hop . | . . . . Pick Up 20 | 11 4 3 2 Fast Attach 3 | 1 1 1 . Attach 12 | 4 1 5 2 Detach . | . . . . Swap 7 | . 2 5 . Drop 10 | . 3 7 . Fire 65 | . 26 30 9 Melee . | . . . . Ram . | . . . . Kick . | . . . . Crush . | . . . . Escape Stasis . | . . . . Rewire . | . . . . Trap . | . . . . Miscellaneous . | . . . . Route ------- -11/Scrapyard -10/Materials -9/Materials -9/Mines History --------- Turn | Location | Event 6 | -11/Scrapyard | Discovered new exit (range 15) 73 | -11/Scrapyard | Entered Materials 304 | -10/Materials | Discovered new exit (range 16) 305 | -10/Materials | Build established: Mutant 339 | -10/Materials | Entered another Materials area 339 | -9/Materials | Evolved 2 slots: Propulsion x2 558 | -9/Materials | Discovered new exit (range 10) 725 | -9/Materials | Core integrity fell below 50% 733 | -9/Materials | Entered Mines 754 | -9/Mines | Lost 8 parts (1p3n2u2w) 776 | -9/Mines | Met a Derelict bent on vengeance 841 | -9/Mines | Core integrity fell below 20% 845 | -9/Mines | Destroyed by G-34 Mercenary with Small Laser Last Messages --------------- LOCATION=UNKNOWN GOAL=ESCAPE 00734_ A derelict emerges from the shadows: "What are you doing alone down here?" 00736_ KT-U7I(g): "Well, at least you look like you can take care of yourself!" 00738_ KT-U7I(g): "I have the funny feeling that things are about to get a lot worse around here, see you around!" 00738_ KT-U7I(g) slips back into the shadows. 00788_ G-34 Mercenary suffers critical hit (Burn). 00788_ Aluminum Leg melted. 00788_ Ion Engine melted. 00788_ G-34 Mercenary destroyed. 00793_ Acquired Sml. Laser. 00794_ Acquired 33 matter. 00797_ Acquired Aluminum Leg. 00825_ Sml. Laser destroyed. 00828_ Med. Laser destroyed. 00829_ Lgt. Treads destroyed. 00834_ Core Extractor disabled. Map ----- +----------------------------------------------------+ | ???????? ????????????# """ #### #????? | | ?????????? ####### """ #?????????? | | ?????????????????# ########?????????? | | ?????????????????########## #????????????????? | | ??????????????????????????# * ##????????????????? | | ??????????????????????????# %= #?????????????????? | | ?????????????????????????## ! ##?????????????????? | | ?????????????????????????# #??????????????????? | | ?????????????????????????# #??????????????????? | | ?????????????????????????## #??????????????????? | | ?????????????????????????## #??????????????????? | | ?????????????????????????# #??????????????????? | | ?????????????????????????# #??????????????????? | | ?????????????????????????## ##??????????????????? | | ??????????????????????????## #???????????????????? | | ???????????????????????????# #???????????????????? | | ???????????????????????????#g#???????????????????? | | ???????????????????????????#g#???????????????????? | | ??????????????????????######g##??????????????????? | | ??????????????????????# #??????????????????? | | ??????????????????????# #??????????????????? | | ??????????????????????# #??????????????????? | | ??????????????????????#"" #??????????????????? | | ??????????????????????#""" #??????????????????? | | ??????????????????????#"""l #??????????????????? | | ??????????????????????# @ g #??????????????????? | | ??????????????????????#""" g #??????????????????? | | ??????????????????????#""" #??????????????????? | | ??????????????????????#""" #??????????????????? | | ??????????????????????# #??????????????????? | | ??????????????????????#########??????????????????? | | ?????????????????????????????????????????????????? | | ?????????????????????????????????????????????????? | | ?????????????????????????????????????????????????? | | ?????????????????????????????????????????????????? | | ?????????????????????????????????????????????????? | | ?????????????????????????????????????????????????? | | ?????????????????????????????????????????????????? | | ?????????????????????????????????????????????????? | | ?????????????????????????????????????????????????? | | ?????????????????????????????????????????????????? | | ?????????????????????????????????????????????????? | | ?????????????????????????????????????????????????? | | ?????????????????????????????????????????????????? | | ?????????????????????????????????????????????????? | | ?????????????????????????????????????????????????? | | ?????????????????????????????????????????????????? | | ?????????????????????????????????????????????????? | | ?????????????????????????????????????????????????? | | ?????????????????????????????????????????????????? | +----------------------------------------------------+ Best States ------------- Heat Dissipation 38 Energy Generation 12 Energy Capacity 265 Matter Stores 300 Matter Capacity 300 Sight Range 16 Terrain Scan Range 16 Terrain Scan Density 10 Armor Coverage 150 Evasion (%) 55 Recoil Reduction 2 Item Schematics ----------------- None Robot Schematics ------------------ None Fabricated ------------ Nothing Alien Tech Used ----------------- None Achievements -------------- GoHome() Challenges ------------ None Game ------ Seed GaussGrapheneStorage Manual? 0 Play Time 00:14:37 Cumulative 11.6 hours Start 2022.06.21 @ 22:54:50 End 2022.06.21 @ 23:08:47 Sessions 1 Manual Loads 0 Difficulty Rogue Special Mode None Game No. 16 Rogue 16 Adventurer 0 Explorer 0 Win Type - Total 0 Types 0/0/0/0/0/0/0/0/0 Lore% 4 Gallery% 15 Achievement% 13 Wizard Run 0 Options --------- ASCII 0 Keyboard 0 Movement Mouse Keybinds 0 Fullscreen 2 Font 18/SmallcapsGlow Map View 76x50 Tactical HUD 1 Map Filters NONE Filters NONE Steam 1 RUN: 60037c2c-0184-488e-a98e-9a7a172be8ca